Workbook

Sheet Sheet1
A1: Market direction | B1: Parameter
A2: Up | B2: 0.48 | C2: Invest every 30 days for a year | I2: Dollar Cost Averaging | J2: Lump Sum | K2: Without Commissions Winner | L2: With Commissions Winner | N2: Commissions
A3: Sideways | B3: 0.5 | C3: So 12 investing periods | H3: Finish | I3: =D372 -> 2432.383289 | J3: =E372 -> 1795.629082 | K3: =IF(I3>J3,"Dollar Cost Averaging","Lump Sum") -> Dollar Cost Averaging | L3: =IF(I4>J4,"Dollar Cost Averaging","Lump Sum") -> Dollar Cost Averaging | N3: Dollar Cost Averaging | O3: =O4*12 -> 120
A4: Down | B4: 0.52 | D4: 12*a | E4: =12*$E$5 -> 2400 | H4: Gain | I4: =(I3-$O$3)-$E$4 -> -87.61671097 | J4: =(J3-$O$4)-$E$4 -> -614.3709182 | N4: Lump Sum | O4: =10 -> 10
A5: Parameter to use | B5: 0.5 | D5: a | E5: 200
D6: Random walk constant | E6: =0.1*RAND() -> 0.07498749761
B7: Market Direction | C7: Day | D7: Dollar Cost Averaging | E7: Lump Sum | F7: Baseline
A8: =RAND() -> 0.7232560481 | B8: =IF(A8<=$B$5,-1*RAND(),RAND()) -> 0.2605075183 | C8: 1 | D8: =E5 -> 200 | E8: =$E$4 -> 2400 | F8: =E4 -> 2400
A9: =RAND() -> 0.333858324 | B9: =IF(A9<=$B$5,-1*RAND(),RAND()) -> -0.7175659985 | C9: 2 | D9: =D8+B9*$E$6*D8 -> 189.2383043 | E9: =E8+B9*$E$6*E8 -> 2270.859651 | F9: =F8 -> 2400
A10: 0.8516995694 | B10: 0.1788665593 | C10: 3 | D10: 191.7765114 | E10: =E9+B10*$E$6*E9 -> 2301.318137 | F10: =F9 -> 2400
A11: 0.7431216196 | B11: 0.8090969609 | C11: 4 | D11: 203.4120059 | E11: 2440.944071 | F11: 2400
A12: 0.8052534991 | B12: 0.4992885683 | C12: 5 | D12: 211.0278329 | E12: 2532.333994 | F12: 2400
A13: 0.505725961 | B13: 0.4573952195 | C13: 6 | D13: 218.2658602 | E13: 2619.190323 | F13: 2400
A14: 0.5863717554 | B14: 0.1193325208 | C14: 7 | D14: 220.2190007 | E14: 2642.628009 | F14: 2400
A15: 0.1327318385 | B15: -0.598649856 | C15: 8 | D15: 210.3330935 | E15: 2523.997122 | F15: 2400
A16: 0.3592353493 | B16: -0.1960675509 | C16: 9 | D16: 207.240647 | E16: 2486.887764 | F16: 2400
A17: 0.6516253456 | B17: 0.2181698715 | C17: 10 | D17: 210.6311066 | E17: 2527.573279 | F17: 2400
A18: 0.3009107418 | B18: -0.1285300705 | C18: 11 | D18: 208.6010128 | E18: 2503.212153 | F18: 2400
A19: 0.4805756121 | B19: -0.3921713094 | C19: 12 | D19: 202.4664856 | E19: 2429.597828 | F19: 2400
A20: 0.9519983443 | B20: 0.1914075423 | C20: 13 | D20: 205.372522 | E20: 2464.470265 | F20: 2400
A21: 0.2371642435 | B21: -0.1864460741 | C21: 14 | D21: 202.5011832 | E21: 2430.014199 | F21: 2400
A22: 0.6478628697 | B22: 0.1645390255 | C22: 15 | D22: 204.9997177 | E22: 2459.996613 | F22: 2400
A23: 0.9928886713 | B23: 0.5749825649 | C23: 16 | D23: 213.8385888 | E23: 2566.063066 | F23: 2400
A24: 0.9263108137 | B24: 0.6964318379 | C24: 17 | D24: 225.006027 | E24: 2700.072324 | F24: 2400
A25: 0.1487048672 | B25: -0.4185562916 | C25: 18 | D25: 217.9438778 | E25: 2615.326534 | F25: 2400
A26: 0.5004289265 | B26: 0.09834672916 | C26: 19 | D26: 219.5511649 | E26: 2634.613979 | F26: 2400
A27: 0.5162287299 | B27: 0.4464521379 | C27: 20 | D27: 226.901371 | E27: 2722.816452 | F27: 2400
A28: 0.4282105297 | B28: -0.5774806351 | C28: 21 | D28: 217.0756731 | E28: 2604.908077 | F28: 2400
A29: 0.02962997945 | B29: -0.5388996216 | C29: 22 | D29: 208.3034858 | E29: 2499.641829 | F29: 2400
A30: 0.2451117789 | B30: -0.8350355649 | C30: 23 | D30: 195.260099 | E30: 2343.121189 | F30: 2400
A31: 0.8507001854 | B31: 0.5721811413 | C31: 24 | D31: 203.6380132 | E31: 2443.656158 | F31: 2400
A32: 0.6416819669 | B32: 0.4171863996 | C32: 25 | D32: 210.0085768 | E32: 2520.102921 | F32: 2400
A33: 0.2405727887 | B33: -0.773729415 | C33: 26 | D33: 197.8238723 | E33: 2373.886467 | F33: 2400
A34: 0.2899756661 | B34: -0.932399914 | C34: 27 | D34: 183.9923563 | E34: 2207.908275 | F34: 2400
A35: 0.50443951 | B35: 0.8725730383 | C35: 28 | D35: 196.0313567 | E35: 2352.376281 | F35: 2400
A36: 0.9355388239 | B36: 0.002752025323 | C36: 29 | D36: 196.0718112 | E36: 2352.861735 | F36: 2400 | I36: Simulation | J36: w/o Commissions | K36: w/ Commission | L36: Counter
A37: 0.4348084267 | B37: -0.6484316797 | C37: 30 | D37: =D36+$E$5 -> 396.0718112 | E37: 2238.455553 | F37: 2400 | I37: Iterations | J37: Trial Winner (lump sum = 1) | K37: Trial Winner (lump sum = 1) | L37: 100
A38: 0.5100746298 | B38: 0.7395532378 | C38: 31 | D38: =D37+B38*$E$6*D37 -> 418.0368634 | E38: 2362.594135 | F38: 2400 | I38: 100 | J38: =IF(K3="Lump Sum",1,0) -> 0 | K38: =IF(L3="Lump Sum",1,0) -> 0
A39: 0.6267986061 | B39: 0.02817538987 | C39: 32 | D39: 418.9200925 | E39: 2367.585828 | F39: 2400
A40: 0.3192742402 | B40: -0.8070590578 | C40: 33 | D40: 393.5673253 | E40: 2224.301098 | F40: 2400 | I40: Simulation results
A41: 0.4433745181 | B41: -0.9011170946 | C41: 34 | D41: 366.9729909 | E41: 2073.999477 | F41: 2400
A42: 0.347602755 | B42: -0.5012168435 | C42: 35 | D42: 353.1803122 | E42: 1996.048213 | F42: 2400 | I42: lump sum win | J42: =AVERAGE(Sheet2!A:A) -> 0.25 | K42: =AVERAGE(Sheet2!B:B) -> 0.32
A43: 0.8572726729 | B43: 0.02774909595 | C43: 36 | D43: 353.9152223 | E43: 2000.201661 | F43: 2400 | I43: DCA win | J43: =1-J42 -> 0.75 | K43: =1-K42 -> 0.68
A44: 0.5992390119 | B44: 0.1296272415 | C44: 37 | D44: 357.3554278 | E44: 2019.644466 | F44: 2400
A45: 0.3948792515 | B45: -0.09451645115 | C45: 38 | D45: 354.8226525 | E45: 2005.33013 | F45: 2400
A46: 0.8107960764 | B46: 0.8998235742 | C46: 39 | D46: 378.7644948 | E46: 2140.64082 | F46: 2400
A47: 0.7114791747 | B47: 0.7728140499 | C47: 40 | D47: 400.7144244 | E47: 2264.693934 | F47: 2400
A48: 0.8138408731 | B48: 0.1374333004 | C48: 41 | D48: 404.8440989 | E48: 2288.03337 | F48: 2400
A49: 0.3378052423 | B49: -0.8735867853 | C49: 42 | D49: 378.3235364 | E49: 2138.148681 | F49: 2400
A50: 0.863768602 | B50: 0.4566417744 | C50: 43 | D50: 391.2782514 | E50: 2211.364075 | F50: 2400
A51: 0.6434541161 | B51: 0.9257244007 | C51: 44 | D51: 418.4399096 | E51: 2364.872007 | F51: 2400
A52: 0.3216739395 | B52: -0.9879085175 | C52: 45 | D52: 387.4415516 | E52: 2189.680426 | F52: 2400
A53: 0.1711938376 | B53: -0.1416116248 | C53: 46 | D53: 383.3272705 | E53: 2166.427988 | F53: 2400
A54: 0.5273816269 | B54: 0.07667578586 | C54: 47 | D54: 385.531297 | E54: 2178.884354 | F54: 2400
A55: 0.3032059254 | B55: -0.3575192563 | C55: 48 | D55: 375.1954055 | E55: 2120.46961 | F55: 2400
A56: 0.7237113793 | B56: 0.5761868717 | C56: 49 | D56: 391.4064028 | E56: 2212.088341 | F56: 2400
A57: 0.6845990549 | B57: 0.5725361607 | C57: 50 | D57: 408.210675 | E57: 2307.060049 | F57: 2400
A58: 0.7322794036 | B58: 0.8019566939 | C58: 51 | D58: 432.7591284 | E58: 2445.799086 | F58: 2400
A59: 0.9099181786 | B59: 0.1552457354 | C59: 52 | D59: 437.7970891 | E59: 2474.27183 | F59: 2400
A60: 0.9549926082 | B60: 0.6937580257 | C60: 53 | D60: 460.5726851 | E60: 2602.991314 | F60: 2400
A61: 0.6082009201 | B61: 0.8235648389 | C61: 54 | D61: 489.016303 | E61: 2763.744422 | F61: 2400
A62: 0.4340924222 | B62: -0.4857624377 | C62: 55 | D62: 471.2033415 | E62: 2663.071964 | F62: 2400
A63: 0.2040450522 | B63: -0.8219651488 | C63: 56 | D63: 442.1597295 | E63: 2498.927906 | F63: 2400
A64: 0.6970633466 | B64: 0.4144911164 | C64: 57 | D64: 455.9027842 | E64: 2576.598712 | F64: 2400
A65: 0.1527683416 | B65: -0.4401002587 | C65: 58 | D65: 440.8570727 | E65: 2491.565758 | F65: 2400
A66: 0.2097234276 | B66: -0.0287598202 | C66: 59 | D66: 439.9063085 | E66: 2486.19238 | F66: 2400
A67: 0.6121789845 | B67: 0.4129574738 | C67: 60 | D67: =D66+$E$5 -> 639.9063085 | E67: 2563.181423 | F67: 2400
A68: 0.7989831202 | B68: 0.4287105313 | C68: 61 | D68: =D67+B68*$E$6*D67 -> 660.4779716 | E68: 2645.5824 | F68: 2400
A69: 0.3464375703 | B69: -0.6731300354 | C69: 62 | D69: 627.139463 | E69: 2512.043091 | F69: 2400
A70: 0.6202894221 | B70: 0.8152247491 | C70: 63 | D70: 665.4775419 | E70: 2665.608465 | F70: 2400
A71: 0.9865518144 | B71: 0.04587814282 | C71: 64 | D71: 667.7669757 | E71: 2674.778924 | F71: 2400
A72: 0.2173853448 | B72: -0.9392488794 | C72: 65 | D72: 620.7348634 | E72: 2486.3891 | F72: 2400
A73: =RAND() -> 0.01469544533 | B73: =IF(A73<=$B$5,-1*RAND(),RAND()) -> -0.6669960259 | C73: 66 | D73: 589.6879632 | E73: 2362.028961 | F73: 2400
A74: 0.2100137333 | B74: -0.9061883763 | C74: 67 | D74: 549.6170158 | E74: =E73+B74*$E$6*E73 -> 2201.522482 | F74: =F73 -> 2400
A75: 0.6877461905 | B75: 0.4272856381 | C75: 68 | D75: 567.227339 | E75: 2272.061642 | F75: 2400
A76: 0.01158905701 | B76: -0.05224709161 | C76: 69 | D76: 565.0050111 | E76: 2263.15998 | F76: 2400
A77: 0.4537027838 | B77: -0.06408803425 | C77: 70 | D77: 562.2897093 | E77: 2252.283683 | F77: 2400
A78: 0.1529639955 | B78: -0.9070757822 | C78: 71 | D78: 524.0431326 | E78: 2099.084826 | F78: 2400
A79: 0.2969011437 | B79: -0.1034502241 | C79: 72 | D79: 519.977882 | E79: 2082.801232 | F79: 2400
A80: 0.7081014776 | B80: 0.1855683388 | C80: 73 | D80: 527.213533 | E80: 2111.784047 | F80: 2400
A81: 0.486393514 | B81: -0.7610468732 | C81: 74 | D81: 497.1259835 | E81: 1991.266642 | F81: 2400
A82: 0.6004587978 | B82: 0.6469261418 | C82: 75 | D82: 521.2422473 | E82: 2087.86572 | F82: 2400
A83: 0.5752524242 | B83: 0.9374973201 | C83: 76 | D83: 557.8858786 | E83: 2234.643887 | F83: 2400
A84: 0.2180942102 | B84: -0.2497973408 | C84: 77 | D84: 547.4357402 | E84: 2192.785258 | F84: 2400
A85: 0.2727844137 | B85: -0.3734698477 | C85: 78 | D85: 532.1044907 | E85: 2131.375058 | F85: 2400
A86: 0.05091660116 | B86: -0.1027295836 | C86: 79 | D86: 528.0054586 | E86: 2114.95615 | F86: 2400
A87: 0.7505979541 | B87: 0.5599266897 | C87: 80 | D87: 550.1750885 | E87: 2203.757875 | F87: 2400
A88: 0.8949627464 | B88: 0.3574530249 | C88: 81 | D88: 564.922261 | E88: 2262.82852 | F88: 2400
A89: 0.08946733237 | B89: -0.8901522688 | C89: 82 | D89: 527.2135356 | E89: 2111.784057 | F89: 2400
A90: 0.765300226 | B90: 0.262178318 | C90: 83 | D90: 537.5786043 | E90: 2153.301935 | F90: 2400
A91: 0.723940149 | B91: 0.4182591219 | C91: 84 | D91: 554.4393298 | E91: 2220.838538 | F91: 2400
A92: 0.8071817331 | B92: 0.5406022189 | C92: 85 | D92: 576.9154174 | E92: 2310.867796 | F92: 2400
A93: 0.9318438254 | B93: 0.4202430094 | C93: 86 | D93: 595.0957366 | E93: 2383.690107 | F93: 2400
A94: 0.6507074664 | B94: 0.01209084635 | C94: 87 | D94: 595.6352874 | E94: 2385.851309 | F94: 2400
A95: 0.7792166417 | B95: 0.550322254 | C95: 88 | D95: 620.2155408 | E95: 2484.308924 | F95: 2400
A96: 0.1928235888 | B96: -0.5265346368 | C96: 89 | D96: 595.7272513 | E96: 2386.219675 | F96: 2400
A97: 0.9422828953 | B97: 0.9636366559 | C97: 90 | D97: =D96+$E$5 -> 795.7272513 | E97: 2558.649583 | F97: 2400
A98: 0.5499353415 | B98: 0.3479553466 | C98: 91 | D98: =D97+B98*$E$6*D97 -> 816.4896061 | E98: 2625.410637 | F98: 2400
A99: 0.2453736826 | B99: -0.8121344364 | C99: 92 | D99: 766.7654469 | E99: 2465.523316 | F99: 2400
A100: 0.9647211447 | B100: 0.7342197455 | C100: 93 | D100: 808.9814833 | E100: 2601.268376 | F100: 2400
A101: 0.5387326084 | B101: 0.08609861529 | C101: 94 | D101: 814.2045263 | E101: 2618.062996 | F101: 2400
A102: 0.5990167245 | B102: 0.1466306908 | C102: 95 | D102: 823.1570866 | E102: 2646.849826 | F102: 2400
A103: 0.3165361951 | B103: -0.1882573633 | C103: 96 | D103: 811.5366204 | E103: 2609.484383 | F103: 2400
A104: 0.05530378243 | B104: -0.7126099931 | C104: 97 | D104: 768.1706677 | E104: 2470.041783 | F104: 2400
A105: 0.8367250176 | B105: 0.2664671598 | C105: 98 | D105: 783.5200278 | E105: 2519.39743 | F105: 2400
A106: 0.3521841674 | B106: -0.05847353969 | C106: 99 | D106: 780.0844614 | E106: 2508.350416 | F106: 2400
A107: 0.9226885642 | B107: 0.2889622171 | C107: 100 | D107: 796.9877633 | E107: 2562.702741 | F107: 2400
A108: 0.68406017 | B108: 0.02481748695 | C108: 101 | D108: 798.4709585 | E108: 2567.471934 | F108: 2400
A109: 0.99489128 | B109: 0.4589553547 | C109: 102 | D109: 825.951066 | E109: 2655.833826 | F109: 2400
A110: 0.6633499123 | B110: 0.2184615276 | C110: 103 | D110: 839.4817 | E110: 2699.341386 | F110: 2400
A111: 0.9450102555 | B111: 0.6733588149 | C111: 104 | D111: 881.8700629 | E111: 2835.64056 | F111: 2400
A112: 0.04260350921 | B112: -0.9716442147 | C112: 105 | D112: 817.6159799 | E112: 2629.032476 | F112: 2400
A113: 0.3319440253 | B113: -0.18217623 | C113: 106 | D113: 806.4465774 | E113: 2593.117422 | F113: 2400
A114: 0.5673050472 | B114: 0.5716337416 | C114: 107 | D114: 841.0152194 | E114: 2704.272396 | F114: 2400
A115: 0.04719918009 | B115: -0.2176065694 | C115: 108 | D115: 827.2917248 | E115: 2660.144695 | F115: 2400
A116: 0.3219159002 | B116: -0.8763769766 | C116: 109 | D116: 772.9243327 | E116: 2485.327125 | F116: 2400
A117: 0.455696587 | B117: -0.2229530208 | C117: 110 | D117: 760.0020511 | E117: 2443.775713 | F117: 2400
A118: 0.3145660252 | B118: -0.2379955236 | C118: 111 | D118: 746.438531 | E118: 2400.162409 | F118: 2400
A119: 0.9663100346 | B119: 0.3864171805 | C119: 112 | D119: 768.0676753 | E119: 2469.710612 | F119: 2400
A120: 0.5382138853 | B120: 0.2687714319 | C120: 113 | D120: 783.547693 | E120: 2519.486388 | F120: 2400
A121: 0.23721748 | B121: -0.7913577207 | C121: 114 | D121: 737.0504566 | E121: 2369.97519 | F121: 2400
A122: 0.0323066923 | B122: -0.5352873372 | C122: 115 | D122: 707.465356 | E122: 2274.844722 | F122: 2400
A123: 0.9865389314 | B123: 0.3469327365 | C123: 116 | D123: 725.8705043 | E123: 2334.026213 | F123: 2400
A124: 0.3919290294 | B124: -0.6963628875 | C124: 117 | D124: 687.9666278 | E124: 2212.146841 | F124: 2400
A125: 0.4186114375 | B125: -0.6145542824 | C125: 118 | D125: 656.262451 | E125: 2110.202514 | F125: 2400
A126: 0.8373265802 | B126: 0.8425480233 | C126: 119 | D126: 697.7254853 | E126: 2243.526308 | F126: 2400
A127: 0.05898465873 | B127: -0.3672188395 | C127: 120 | D127: =D126+$E$5 -> 897.7254853 | E127: 2181.746723 | F127: 2400
A128: 0.4640488448 | B128: -0.06727692203 | C128: 121 | D128: =D127+B128*$E$6*D127 -> 893.1965248 | E128: 2170.739968 | F128: 2400
A129: 0.167803091 | B129: -0.732875802 | C129: 122 | D129: 844.10955 | E129: 2051.443648 | F129: 2400
A130: 0.6119617183 | B130: 0.857410782 | C130: 123 | D130: 898.3816486 | E130: 2183.3414 | F130: 2400
A131: 0.6673452356 | B131: 0.5498617128 | C131: 124 | D131: 935.424398 | E131: 2273.366579 | F131: 2400
A132: 0.6414257076 | B132: 0.3030698827 | C132: 125 | D132: 956.6832758 | E132: 2325.032135 | F132: 2400
A133: 0.5114557908 | B133: 0.4810728465 | C133: 126 | D133: 991.1950977 | E133: 2408.906389 | F133: 2400
A134: 0.2504034049 | B134: -0.05055169743 | C134: 127 | D134: 987.4377296 | E134: 2399.774838 | F134: 2400
A135: 0.2748714094 | B135: -0.649434427 | C135: 128 | D135: 939.3500429 | E135: 2282.907093 | F135: 2400
A136: 0.4861587726 | B136: -0.3884560799 | C136: 129 | D136: 911.9873873 | E136: 2216.407495 | F136: 2400
A137: =RAND() -> 0.3635463812 | B137: =IF(A137<=$B$5,-1*RAND(),RAND()) -> -0.008222309863 | C137: 130 | D137: 911.4250828 | E137: 2215.040923 | F137: 2400
A138: 0.2500748661 | B138: -0.7909650476 | C138: 131 | D138: 857.366192 | E138: =E137+B138*$E$6*E137 -> 2083.661332 | F138: =F137 -> 2400
A139: 0.4951968068 | B139: -0.5634909537 | C139: 132 | D139: 821.1383752 | E139: 1995.616688 | F139: 2400
A140: 0.3358099918 | B140: -0.7026144889 | C140: 133 | D140: 777.8748094 | E140: 1890.473028 | F140: 2400
A141: 0.3204940937 | B141: -0.4736046749 | C141: 134 | D141: 750.2490294 | E141: 1823.333957 | F141: 2400
A142: 0.197131587 | B142: -0.6644429103 | C142: 135 | D142: 712.8679381 | E142: 1732.486505 | F142: 2400
A143: 0.8514437437 | B143: 0.9074693872 | C143: 136 | D143: 761.3777876 | E143: 1850.380234 | F143: 2400
A144: 0.3377362914 | B144: -0.8956706933 | C144: 137 | D144: 710.2405307 | E144: 1726.101103 | F144: 2400
A145: 0.3109119428 | B145: -0.2678185546 | C145: 138 | D145: 695.9767394 | E145: 1691.43574 | F145: 2400
A146: 0.07962146268 | B146: -0.5187576074 | C146: 139 | D146: 668.9030112 | E146: 1625.638324 | F146: 2400
A147: 0.5823989042 | B147: 0.4848106256 | C147: 140 | D147: 693.2208033 | E147: 1684.737975 | F147: 2400
A148: 0.5754500156 | B148: 0.2998433401 | C148: 141 | D148: 708.8075277 | E148: 1722.618469 | F148: 2400
A149: 0.4932820449 | B149: -0.06487690303 | C149: 142 | D149: 705.3592098 | E149: 1714.238005 | F149: 2400
A150: 0.3869221526 | B150: -0.2431633211 | C150: 143 | D150: 692.4975426 | E150: 1682.980231 | F150: 2400
A151: 0.5311907707 | B151: 0.4318641982 | C151: 144 | D151: 714.9236708 | E151: 1737.482562 | F151: 2400
A152: 0.8461252787 | B152: 0.3019430257 | C152: 145 | D152: 731.1109382 | E152: 1776.822559 | F152: 2400
A153: 0.5638924709 | B153: 0.6212662009 | C153: 146 | D153: 765.171348 | E153: 1859.599743 | F153: 2400
A154: 0.4781073751 | B154: -0.06622063234 | C154: 147 | D154: 761.3717217 | E154: 1850.365492 | F154: 2400
A155: 0.5521293531 | B155: 0.1891079786 | C155: 148 | D155: 772.1685317 | E155: 1876.605033 | F155: 2400
A156: 0.5146398363 | B156: 0.6984763027 | C156: 149 | D156: 812.6123952 | E156: 1974.895956 | F156: 2400
A157: 0.4268608658 | B157: -0.629501357 | C157: 150 | D157: =D156+$E$5 -> 1012.612395 | E157: 1881.671523 | F157: 2400
A158: 0.8588924574 | B158: 0.9015327473 | C158: 151 | D158: =D157+B158*$E$6*D157 -> 1081.068724 | E158: 2008.879451 | F158: 2400
A159: 0.2118266471 | B159: -0.5989920635 | C159: 152 | D159: 1032.510451 | E159: 1918.646782 | F159: 2400
A160: 0.4401184421 | B160: -0.8537058271 | C160: 153 | D160: 966.4119575 | E160: 1795.820265 | F160: 2400
A161: 0.9891336804 | B161: 0.6133836536 | C161: 154 | D161: 1010.863144 | E161: 1878.421003 | F161: 2400
A162: 0.4900198131 | B162: -0.4410742168 | C162: 155 | D162: 977.4287928 | E162: 1816.292131 | F162: 2400
A163: 0.1428368551 | B163: -0.653709103 | C163: 156 | D163: 929.5152238 | E163: 1727.257473 | F163: 2400
A164: 0.6578070126 | B164: 0.1462144644 | C164: 157 | D164: 939.7066674 | E164: 1746.195567 | F164: 2400
A165: 0.823760361 | B165: 0.02405233454 | C165: 158 | D165: 941.4015453 | E165: 1749.345048 | F165: 2400
A166: 0.4881929258 | B166: -0.6600245465 | C166: 159 | D166: 894.808204 | E166: 1662.763683 | F166: 2400
A167: 0.4575250847 | B167: -0.3006141435 | C167: 160 | D167: 874.6371669 | E167: 1625.281161 | F167: 2400
A168: 0.1687230014 | B168: -0.9008853461 | C168: 161 | D168: 815.5509326 | E168: 1515.485069 | F168: 2400
A169: 0.7124957478 | B169: 0.2566217414 | C169: 162 | D169: 831.2449236 | E169: 1544.648188 | F169: 2400
A170: 0.6194383138 | B170: 0.3766868622 | C170: 163 | D170: 854.724937 | E170: 1588.279564 | F170: 2400
A171: 0.6322686821 | B171: 0.3812233991 | C171: 164 | D171: 879.1589491 | E171: 1633.683694 | F171: 2400
A172: 0.6668295901 | B172: 0.2434500957 | C172: 165 | D172: 895.208623 | E172: 1663.507756 | F172: 2400
A173: 0.626776095 | B173: 0.5933063059 | C173: 166 | D173: 935.0369517 | E173: 1737.518139 | F173: 2400
A174: 0.4171530466 | B174: -0.4493412252 | C174: 167 | D174: 903.5309058 | E174: 1678.972511 | F174: 2400
A175: 0.08088914384 | B175: -0.8634796831 | C175: 168 | D175: 845.0271164 | E175: 1570.258737 | F175: 2400
A176: 0.4903985928 | B176: -0.213013696 | C176: 169 | D176: 831.5291907 | E176: 1545.176423 | F176: 2400
A177: 0.799102235 | B177: 0.9873624859 | C177: 170 | D177: 893.0954806 | E177: 1659.581041 | F177: 2400
A178: 0.9304672477 | B178: 0.01742413069 | C178: 171 | D178: 894.262392 | E178: 1661.749436 | F178: 2400
A179: 0.1545630312 | B179: -0.4783967522 | C179: 172 | D179: 862.1818239 | E179: 1602.13621 | F179: 2400
A180: 0.5848479152 | B180: 0.06968724529 | C180: 173 | D180: 866.6873034 | E180: 1610.508449 | F180: 2400
A181: 0.8827205292 | B181: 0.8653456463 | C181: 174 | D181: 922.9267332 | E181: 1715.014511 | F181: 2400
A182: 0.6152184136 | B182: 0.5849436001 | C182: 175 | D182: 963.4094901 | E182: 1790.240976 | F182: 2400
A183: 0.4807131829 | B183: -0.8348906166 | C183: 176 | D183: 903.0939305 | E183: 1678.160508 | F183: 2400
A184: 0.9460939401 | B184: 0.05057471022 | C184: 177 | D184: 906.5188881 | E184: 1684.524883 | F184: 2400
A185: 0.09698633386 | B185: -0.9014383985 | C185: 178 | D185: 845.2412845 | E185: 1570.656712 | F185: 2400
A186: 0.6943484351 | B186: 0.04832036487 | C186: 179 | D186: 848.3039515 | E186: 1576.347866 | F186: 2400
A187: 0.5686444974 | B187: 0.8686369022 | C187: 180 | D187: =D186+$E$5 -> 1048.303951 | E187: 1679.026291 | F187: 2400
A188: 0.1579744561 | B188: -0.0838578191 | C188: 181 | D188: =D187+B188*$E$6*D187 -> 1041.711914 | E188: 1668.46809 | F188: 2400
A189: 0.1552020783 | B189: -0.1772205249 | C189: 182 | D189: 1027.868267 | E189: 1646.295278 | F189: 2400
A190: 0.9852795131 | B190: 0.373857598 | C190: 183 | D190: 1056.68419 | E190: 1692.448583 | F190: 2400
A191: 0.05548139652 | B191: -0.7732897209 | C191: 184 | D191: 995.4101795 | E191: 1594.308463 | F191: 2400
A192: 0.7144331895 | B192: 0.3937482488 | C192: 185 | D192: 1024.800855 | E192: 1641.382327 | F192: 2400
A193: 0.06103824116 | B193: -0.4688774973 | C193: 186 | D193: 988.7689084 | E193: 1583.671406 | F193: 2400
A194: 0.3818396927 | B194: -0.4714474619 | C194: 187 | D194: 953.813292 | E194: 1527.684401 | F194: 2400
A195: 0.5241676796 | B195: 0.4029046441 | C195: 188 | D195: 982.6306728 | E195: 1573.840041 | F195: 2400
A196: 0.4928787549 | B196: -0.2323109703 | C196: 189 | D196: 965.5128354 | E196: 1546.423089 | F196: 2400
A197: 0.7872062008 | B197: 0.1071831341 | C197: 190 | D197: 973.2730434 | E197: 1558.852302 | F197: 2400
A198: 0.8434879588 | B198: 0.7505163632 | C198: 191 | D198: 1028.048212 | E198: 1646.583487 | F198: 2400
A199: 0.5259887049 | B199: 0.07514037244 | C199: 192 | D199: 1033.84084 | E199: 1655.861308 | F199: 2400
A200: 0.4918100452 | B200: -0.8578338112 | C200: 193 | D200: 967.3371562 | E200: 1549.345031 | F200: 2400
... 172 more rows

Sheet Sheet2
A1: 1 | B1: 0
A2: 0 | B2: 0
A3: 1 | B3: 0
A4: 0 | B4: 0
A5: 0 | B5: 0
A6: 0 | B6: 1
A7: 0 | B7: 0
A8: 0 | B8: 0
A9: 1 | B9: 0
A10: 0 | B10: 0
A11: 0 | B11: 0
A12: 1 | B12: 0
A13: 1 | B13: 1
A14: 1 | B14: 1
A15: 0 | B15: 1
A16: 0 | B16: 0
A17: 1 | B17: 0
A18: 1 | B18: 1
A19: 0 | B19: 1
A20: 0 | B20: 0
A21: 0 | B21: 0
A22: 1 | B22: 0
A23: 0 | B23: 0
A24: 0 | B24: 0
A25: 0 | B25: 0
A26: 1 | B26: 1
A27: 0 | B27: 1
A28: 0 | B28: 0
A29: 0 | B29: 0
A30: 1 | B30: 0
A31: 0 | B31: 1
A32: 0 | B32: 0
A33: 0 | B33: 0
A34: 0 | B34: 1
A35: 1 | B35: 0
A36: 0 | B36: 0
A37: 0 | B37: 0
A38: 0 | B38: 0
A39: 0 | B39: 1
A40: 0 | B40: 1
A41: 0 | B41: 1
A42: 1 | B42: 0
A43: 0 | B43: 0
A44: 0 | B44: 0
A45: 0 | B45: 0
A46: 0 | B46: 0
A47: 0 | B47: 0
A48: 0 | B48: 1
A49: 1 | B49: 0
A50: 1 | B50: 1
A51: 1 | B51: 0
A52: 0 | B52: 0
A53: 1 | B53: 0
A54: 0 | B54: 1
A55: 1 | B55: 1
A56: 0 | B56: 0
A57: 1 | B57: 0
A58: 0 | B58: 0
A59: 0 | B59: 0
A60: 0 | B60: 1
A61: 0 | B61: 1
A62: 0 | B62: 0
A63: 1 | B63: 0
A64: 1 | B64: 0
A65: 0 | B65: 0
A66: 0 | B66: 1
A67: 1 | B67: 0
A68: 0 | B68: 0
A69: 0 | B69: 0
A70: 0 | B70: 1
A71: 0 | B71: 1
A72: 0 | B72: 0
A73: 0 | B73: 0
A74: 0 | B74: 1
A75: 0 | B75: 0
A76: 1 | B76: 0
A77: 0 | B77: 1
A78: 0 | B78: 0
A79: 0 | B79: 0
A80: 0 | B80: 0
A81: 0 | B81: 0
A82: 1 | B82: 0
A83: 0 | B83: 1
A84: 0 | B84: 1
A85: 0 | B85: 0
A86: 0 | B86: 0
A87: 0 | B87: 1
A88: 0 | B88: 1
A89: 0 | B89: 1
A90: 0 | B90: 0
A91: 1 | B91: 1
A92: 0 | B92: 1
A93: 0 | B93: 0
A94: 0 | B94: 0
A95: 0 | B95: 0
A96: 0 | B96: 1
A97: 0 | B97: 0
A98: 0 | B98: 0
A99: 0 | B99: 0
A100: 0 | B100: 0

Sheet Sheet3
